[Event "Early-Titled-Tuesday-Blitz-June-18-2024"]
[Site "Chess.com"]
[Date "2024.06.18"]
[Round "4"]
[White "XDPS"]
[Black "HansOnTwitch"]
[Result "0-1"]
[WhiteElo "2876"]
[BlackElo "3168"]
[TimeControl "180+1"]
[EndTime "8:39:11 PDT"]
[Termination "HansOnTwitch won by resignation"]

1. d4 {[%clk 0:03:00.9]} 1... Nf6 {[%clk 0:02:57.8]} 2. Nf3 {[%clk 0:03:01.3]}
2... b6 {[%clk 0:02:57.2]} 3. Bf4 {[%clk 0:03:01]} 3... Bb7 {[%clk 0:02:57.4]}
4. e3 {[%clk 0:03:01.6]} 4... g6 {[%clk 0:02:54.1]} 5. h3 {[%clk 0:03:01.5]}
5... Bg7 {[%clk 0:02:54.4]} 6. Nbd2 {[%clk 0:03:02.1]} 6... O-O {[%clk
0:02:54.1]} 7. Be2 {[%clk 0:03:02.7]} 7... d6 {[%clk 0:02:54.3]} 8. O-O {[%clk
0:03:03.3]} 8... Nbd7 {[%clk 0:02:53.5]} 9. Bh2 {[%clk 0:03:03.9]} 9... Re8
{[%clk 0:02:52.7]} 10. a4 {[%clk 0:03:04.4]} 10... a5 {[%clk 0:02:51.8]} 11. c3
{[%clk 0:03:04.9]} 11... e5 {[%clk 0:02:52.2]} 12. Qb3 {[%clk 0:03:05.3]} 12...
h5 {[%clk 0:02:44.1]} 13. Rfd1 {[%clk 0:03:04.8]} 13... e4 {[%clk 0:02:43.5]}
14. Ne1 {[%clk 0:03:00.8]} 14... Nh7 {[%clk 0:02:35.7]} 15. Qc2 {[%clk
0:02:55.6]} 15... Qg5 {[%clk 0:02:26.7]} 16. b4 {[%clk 0:02:52.7]} 16... Qf5
{[%clk 0:02:20.3]} 17. Nb3 {[%clk 0:02:46.4]} 17... Ng5 {[%clk 0:02:12.4]} 18.
bxa5 {[%clk 0:02:31.3]} 18... bxa5 {[%clk 0:02:12.2]} 19. c4 {[%clk 0:02:32]}
19... Nf6 {[%clk 0:02:05.8]} 20. c5 {[%clk 0:02:29.1]} 20... Bf8 {[%clk
0:02:05.4]} 21. Qd2 {[%clk 0:02:09.8]} 21... Nf3+ {[%clk 0:02:00.7]} 22. gxf3
{[%clk 0:01:57.5]} 22... exf3 {[%clk 0:01:56.7]} 23. Bf1 {[%clk 0:01:55.7]}
23... Bd5 {[%clk 0:01:52.3]} 24. Rdb1 {[%clk 0:01:13.1]} 24... Bh6 {[%clk
0:01:51.8]} 25. Nc2 {[%clk 0:00:57.2]} 25... Ne4 {[%clk 0:01:26.4]} 26. Qd3
{[%clk 0:00:57]} 26... Qg5+ {[%clk 0:01:25.5]} 0-1

[Event "Early-Titled-Tuesday-Blitz-June-18-2024"]
[Site "Chess.com"]
[Date "2024.06.18"]
[Round "4"]
[White "AustinThomas12345"]
[Black "Austen48"]
[Result "1-0"]
[WhiteElo "2487"]
[BlackElo "2276"]
[TimeControl "180+1"]
[EndTime "8:39:26 PDT"]
[Termination "AustinThomas12345 won by resignation"]

1. e4 {[%clk 0:03:00.9]} 1... e5 {[%clk 0:02:54.3]} 2. Nf3 {[%clk 0:03:01]} 2...
Nc6 {[%clk 0:02:52]} 3. Nc3 {[%clk 0:03:01.5]} 3... Nf6 {[%clk 0:02:51.3]} 4.
Be2 {[%clk 0:03:00.7]} 4... g6 {[%clk 0:02:44.5]} 5. d4 {[%clk 0:02:59.2]} 5...
exd4 {[%clk 0:02:41.9]} 6. Nxd4 {[%clk 0:03:00]} 6... Bg7 {[%clk 0:02:40.5]} 7.
Bg5 {[%clk 0:02:59.6]} 7... h6 {[%clk 0:02:39.9]} 8. Bh4 {[%clk 0:02:59.4]} 8...
g5 {[%clk 0:02:39.9]} 9. Bg3 {[%clk 0:02:59.4]} 9... O-O {[%clk 0:02:40.2]} 10.
O-O {[%clk 0:02:59]} 10... d6 {[%clk 0:02:39]} 11. Nxc6 {[%clk 0:02:55.8]} 11...
bxc6 {[%clk 0:02:38.6]} 12. e5 {[%clk 0:02:55.6]} 12... Nd5 {[%clk 0:02:17.4]}
13. Nxd5 {[%clk 0:02:52.8]} 13... cxd5 {[%clk 0:02:17.1]} 14. Qxd5 {[%clk
0:02:43.1]} 14... Be6 {[%clk 0:02:13.3]} 15. Qe4 {[%clk 0:02:43.1]} 15... dxe5
{[%clk 0:02:08.4]} 16. Bxe5 {[%clk 0:02:37.3]} 16... f5 {[%clk 0:02:06.9]} 17.
Qe3 {[%clk 0:02:33]} 17... f4 {[%clk 0:01:55.6]} 18. Qc3 {[%clk 0:02:29.9]}
18... Bxe5 {[%clk 0:01:51.8]} 19. Qxe5 {[%clk 0:02:30.8]} 19... Bf5 {[%clk
0:01:52]} 20. Bc4+ {[%clk 0:02:25.1]} 20... Kh7 {[%clk 0:01:47]} 21. Rad1 {[%clk
0:02:25.7]} 21... Qf6 {[%clk 0:01:33.1]} 22. Qxc7+ {[%clk 0:02:19.3]} 22... Kh8
{[%clk 0:01:33.3]} 23. Rd6 {[%clk 0:02:17.1]} 23... Qg7 {[%clk 0:01:04.3]} 24.
Qxg7+ {[%clk 0:02:07.4]} 24... Kxg7 {[%clk 0:01:03.8]} 25. Bd3 {[%clk
0:02:06.7]} 25... Bxd3 {[%clk 0:00:58.8]} 26. Rxd3 {[%clk 0:02:07.6]} 26... Rf7
{[%clk 0:00:58.8]} 27. Rfd1 {[%clk 0:02:06.2]} 27... Rc8 {[%clk 0:00:58.5]} 28.
c3 {[%clk 0:02:04.3]} 28... Rb8 {[%clk 0:00:56.7]} 29. b3 {[%clk 0:02:04.2]}
29... Rbb7 {[%clk 0:00:57]} 30. c4 {[%clk 0:02:04.2]} 30... Rfe7 {[%clk
0:00:55.6]} 31. Kf1 {[%clk 0:02:03.7]} 31... a5 {[%clk 0:00:49.8]} 32. Re1
{[%clk 0:02:01.2]} 32... Rf7 {[%clk 0:00:46.4]} 33. c5 {[%clk 0:01:51.4]} 33...
a4 {[%clk 0:00:45.1]} 34. c6 {[%clk 0:01:50.6]} 34... Rb6 {[%clk 0:00:44]} 35.
Rc1 {[%clk 0:01:50]} 35... axb3 {[%clk 0:00:43.5]} 36. Rxb3 {[%clk 0:01:48.7]}
36... Rb8 {[%clk 0:00:32.5]} 37. Rxb8 {[%clk 0:01:48]} 1-0

[Event "Early-Titled-Tuesday-Blitz-June-18-2024"]
[Site "Chess.com"]
[Date "2024.06.18"]
[Round "4"]
[White "pineapplehhh"]
[Black "yonaltimur"]
[Result "1-0"]
[WhiteElo "2106"]
[BlackElo "2321"]
[TimeControl "180+1"]
[EndTime "8:39:31 PDT"]
[Termination "pineapplehhh won by resignation"]

1. e4 {[%clk 0:03:00.9]} 1... c5 {[%clk 0:02:30]} 2. Nf3 {[%clk 0:02:57.7]} 2...
d6 {[%clk 0:02:30.1]} 3. d4 {[%clk 0:02:57.6]} 3... cxd4 {[%clk 0:02:31]} 4.
Nxd4 {[%clk 0:02:57.6]} 4... Nf6 {[%clk 0:02:31.4]} 5. Nc3 {[%clk 0:02:58]} 5...
a6 {[%clk 0:02:29.6]} 6. Bg5 {[%clk 0:02:58.4]} 6... e6 {[%clk 0:02:22.1]} 7.
Qf3 {[%clk 0:02:57.2]} 7... Nbd7 {[%clk 0:02:08.9]} 8. O-O-O {[%clk 0:02:56.2]}
8... Qc7 {[%clk 0:02:08.9]} 9. Qg3 {[%clk 0:02:53.8]} 9... b5 {[%clk 0:01:58.9]}
10. Bd3 {[%clk 0:02:50.4]} 10... Bb7 {[%clk 0:01:44.7]} 11. Rhe1 {[%clk
0:02:47.4]} 11... Rc8 {[%clk 0:01:33.6]} 12. f4 {[%clk 0:02:45.4]} 12... b4
{[%clk 0:01:09.3]} 13. Nd5 {[%clk 0:02:42.4]} 13... Nxd5 {[%clk 0:01:02.2]} 14.
exd5 {[%clk 0:02:41.4]} 14... Bxd5 {[%clk 0:01:03.1]} 15. Kb1 {[%clk 0:02:00.1]}
15... h6 {[%clk 0:00:39.9]} 16. Bh4 {[%clk 0:01:59.2]} 16... Nc5 {[%clk
0:00:30.4]} 17. Nf5 {[%clk 0:01:47.9]} 17... Nxd3 {[%clk 0:00:27.1]} 18. Qxd3
{[%clk 0:01:47.8]} 18... Kd7 {[%clk 0:00:23.8]} 19. Ne3 {[%clk 0:01:42.6]} 19...
Bc6 {[%clk 0:00:19.1]} 20. f5 {[%clk 0:01:40.3]} 20... Bb5 {[%clk 0:00:17]} 21.
Qb3 {[%clk 0:01:36.4]} 21... d5 {[%clk 0:00:10.6]} 22. fxe6+ {[%clk 0:01:33.5]}
22... fxe6 {[%clk 0:00:11.5]} 23. Nxd5 {[%clk 0:01:33.3]} 23... exd5 {[%clk
0:00:11.5]} 24. Qxd5+ {[%clk 0:01:33.4]} 24... Bd6 {[%clk 0:00:10.8]} 25. Re7+
{[%clk 0:01:28.8]} 25... Kd8 {[%clk 0:00:10.7]} 26. Qxd6+ {[%clk 0:01:29]} 1-0

[Event "Early-Titled-Tuesday-Blitz-June-18-2024"]
[Site "Chess.com"]
[Date "2024.06.18"]
[Round "4"]
[White "jeetjain"]
[Black "Cmorales2001"]
[Result "1-0"]
[WhiteElo "2590"]
[BlackElo "2326"]
[TimeControl "180+1"]
[EndTime "8:39:36 PDT"]
[Termination "jeetjain won by resignation"]

1. Nf3 {[%clk 0:03:00.3]} 1... Nf6 {[%clk 0:02:58.3]} 2. b3 {[%clk 0:03:00.2]}
2... g6 {[%clk 0:02:55.8]} 3. Bb2 {[%clk 0:03:00.6]} 3... Bg7 {[%clk 0:02:56.5]}
4. g3 {[%clk 0:03:00.4]} 4... c5 {[%clk 0:02:53.7]} 5. Bg2 {[%clk 0:03:00.5]}
5... Nc6 {[%clk 0:02:53.8]} 6. O-O {[%clk 0:03:00.8]} 6... O-O {[%clk
0:02:52.6]} 7. d3 {[%clk 0:02:58.1]} 7... d6 {[%clk 0:02:51.6]} 8. c4 {[%clk
0:02:58]} 8... Qd7 {[%clk 0:02:51.8]} 9. Nbd2 {[%clk 0:02:57.8]} 9... b6 {[%clk
0:02:52.3]} 10. e3 {[%clk 0:02:55.1]} 10... Bb7 {[%clk 0:02:52.4]} 11. a3 {[%clk
0:02:55.4]} 11... e6 {[%clk 0:02:47.7]} 12. Qc2 {[%clk 0:02:52.8]} 12... Rac8
{[%clk 0:02:46]} 13. Rad1 {[%clk 0:02:52.6]} 13... d5 {[%clk 0:02:44.5]} 14. d4
{[%clk 0:02:51.2]} 14... Qe7 {[%clk 0:02:39.4]} 15. dxc5 {[%clk 0:02:48.8]}
15... Qxc5 {[%clk 0:02:37.5]} 16. b4 {[%clk 0:02:48.1]} 16... Qe7 {[%clk
0:02:36.9]} 17. Qb3 {[%clk 0:02:47.5]} 17... Rfd8 {[%clk 0:02:16.9]} 18. cxd5
{[%clk 0:02:42.9]} 18... Nxd5 {[%clk 0:02:16.2]} 19. Bxg7 {[%clk 0:02:42.8]}
19... Kxg7 {[%clk 0:02:17.1]} 20. e4 {[%clk 0:02:40.5]} 20... Nf6 {[%clk
0:02:15.2]} 21. e5 {[%clk 0:02:39.5]} 21... Nd5 {[%clk 0:02:09.4]} 22. Ne4
{[%clk 0:02:35.7]} 22... Ba8 {[%clk 0:01:30.3]} 23. h4 {[%clk 0:02:35.5]} 23...
Rb8 {[%clk 0:01:10.7]} 24. h5 {[%clk 0:02:35.1]} 24... Qc7 {[%clk 0:01:08.1]}
25. Qb2 {[%clk 0:02:33.3]} 25... Nce7 {[%clk 0:01:03.1]} 26. g4 {[%clk
0:02:28.3]} 26... Nf4 {[%clk 0:00:59]} 27. Nd6 {[%clk 0:02:09]} 27... Nxg2
{[%clk 0:00:48.8]} 28. Kxg2 {[%clk 0:02:09.9]} 28... Qc6 {[%clk 0:00:48.4]} 29.
Rd3 {[%clk 0:02:09.4]} 29... Nd5 {[%clk 0:00:48.1]} 30. Kg3 {[%clk 0:02:08.7]}
30... Kg8 {[%clk 0:00:32.7]} 31. Rfd1 {[%clk 0:02:08.5]} 31... Rd7 {[%clk
0:00:25.1]} 32. Rc1 {[%clk 0:02:07.1]} 32... Qa4 {[%clk 0:00:24]} 33. h6 {[%clk
0:02:03.1]} 33... Rbd8 {[%clk 0:00:19.3]} 34. Qd2 {[%clk 0:01:59.4]} 34... Re7
{[%clk 0:00:16.5]} 35. Qg5 {[%clk 0:01:58.4]} 35... Qd7 {[%clk 0:00:16.5]} 36.
Rxd5 {[%clk 0:01:57.3]} 36... exd5 {[%clk 0:00:15.6]} 37. Qf6 {[%clk 0:01:57.4]}
1-0

[Event "Early-Titled-Tuesday-Blitz-June-18-2024"]
[Site "Chess.com"]
[Date "2024.06.18"]
[Round "4"]
[White "drdaro"]
[Black "Zq1"]
[Result "0-1"]
[WhiteElo "2322"]
[BlackElo "2518"]
[TimeControl "180+1"]
[EndTime "8:39:49 PDT"]
[Termination "Zq1 won by resignation"]

1. Nf3 {[%clk 0:03:00.9]} 1... Nf6 {[%clk 0:02:59.1]} 2. g3 {[%clk 0:03:00.6]}
2... g6 {[%clk 0:02:57.9]} 3. Bg2 {[%clk 0:03:01.5]} 3... Bg7 {[%clk 0:02:57.8]}
4. O-O {[%clk 0:03:02.4]} 4... O-O {[%clk 0:02:57.7]} 5. Re1 {[%clk 0:03:00.9]}
5... d5 {[%clk 0:02:55.2]} 6. d3 {[%clk 0:02:58.1]} 6... c5 {[%clk 0:02:53.3]}
7. c3 {[%clk 0:02:57.7]} 7... Nc6 {[%clk 0:02:52.5]} 8. Qc2 {[%clk 0:02:58]}
8... h6 {[%clk 0:02:50.4]} 9. e4 {[%clk 0:02:57.9]} 9... e5 {[%clk 0:02:49.4]}
10. Nbd2 {[%clk 0:02:49.8]} 10... Re8 {[%clk 0:02:47.4]} 11. a4 {[%clk
0:02:47.8]} 11... b6 {[%clk 0:02:46.3]} 12. exd5 {[%clk 0:02:43.7]} 12... Nxd5
{[%clk 0:02:45.6]} 13. Nc4 {[%clk 0:02:43.9]} 13... Bb7 {[%clk 0:02:35.9]} 14.
Bd2 {[%clk 0:02:18.4]} 14... Qc7 {[%clk 0:02:26.5]} 15. Rad1 {[%clk 0:02:16]}
15... Rad8 {[%clk 0:02:24.6]} 16. Bc1 {[%clk 0:02:07.3]} 16... a6 {[%clk
0:02:22.2]} 17. Ne3 {[%clk 0:01:59.7]} 17... Nxe3 {[%clk 0:02:08.8]} 18. Bxe3
{[%clk 0:02:00.6]} 18... Rc8 {[%clk 0:02:08.2]} 19. Nd2 {[%clk 0:01:59.2]} 19...
Qb8 {[%clk 0:02:01.9]} 20. Nc4 {[%clk 0:01:56]} 20... b5 {[%clk 0:01:58.3]} 21.
axb5 {[%clk 0:01:56.9]} 21... axb5 {[%clk 0:01:57.5]} 22. Na3 {[%clk 0:01:57.8]}
22... Nd4 {[%clk 0:01:46.5]} 23. cxd4 {[%clk 0:01:37.9]} 23... cxd4 {[%clk
0:01:41.9]} 24. Qb3 {[%clk 0:01:29.3]} 24... Bxg2 {[%clk 0:01:34.7]} 25. Kxg2
{[%clk 0:01:02.8]} 25... dxe3 {[%clk 0:01:20.5]} 26. Rxe3 {[%clk 0:01:03.7]}
26... Rc5 {[%clk 0:01:08.4]} 27. Rde1 {[%clk 0:00:55.5]} 27... Rd8 {[%clk
0:01:06.3]} 28. Nc2 {[%clk 0:00:38.9]} 28... Kh7 {[%clk 0:00:57.5]} 29. Nb4
{[%clk 0:00:31.5]} 29... f5 {[%clk 0:00:53.7]} 30. Na6 {[%clk 0:00:31.2]} 30...
Qb7+ {[%clk 0:00:53.3]} 0-1

[Event "Early-Titled-Tuesday-Blitz-June-18-2024"]
[Site "Chess.com"]
[Date "2024.06.18"]
[Round "4"]
[White "dropstoneDP"]
[Black "Mops_2004"]
[Result "1-0"]
[WhiteElo "2984"]
[BlackElo "2812"]
[TimeControl "180+1"]
[EndTime "8:39:50 PDT"]
[Termination "dropstoneDP won by resignation"]

1. e4 {[%clk 0:03:00.9]} 1... g6 {[%clk 0:03:00.3]} 2. d4 {[%clk 0:03:00.2]}
2... Bg7 {[%clk 0:03:00.6]} 3. Nf3 {[%clk 0:02:59]} 3... d6 {[%clk 0:03:00.7]}
4. h3 {[%clk 0:02:57.3]} 4... Nf6 {[%clk 0:02:57.5]} 5. Nc3 {[%clk 0:02:55.6]}
5... O-O {[%clk 0:02:55.3]} 6. Bg5 {[%clk 0:02:54.9]} 6... a6 {[%clk 0:02:49.3]}
7. a4 {[%clk 0:02:51.2]} 7... Nc6 {[%clk 0:02:44.4]} 8. Be2 {[%clk 0:02:48.8]}
8... h6 {[%clk 0:02:39.6]} 9. Be3 {[%clk 0:02:48.4]} 9... e5 {[%clk 0:02:33.9]}
10. dxe5 {[%clk 0:02:49.3]} 10... dxe5 {[%clk 0:02:32.7]} 11. Bc5 {[%clk
0:02:45.8]} 11... Re8 {[%clk 0:02:30.8]} 12. Bc4 {[%clk 0:02:44]} 12... Be6
{[%clk 0:02:24.2]} 13. Bxe6 {[%clk 0:02:42.8]} 13... Rxe6 {[%clk 0:02:24.7]} 14.
O-O {[%clk 0:02:42.1]} 14... Bf8 {[%clk 0:02:23]} 15. Bxf8 {[%clk 0:02:27.9]}
15... Qxf8 {[%clk 0:02:13.7]} 16. Nd5 {[%clk 0:02:27.3]} 16... Rd8 {[%clk
0:02:11.4]} 17. Nxf6+ {[%clk 0:02:25.1]} 17... Rxf6 {[%clk 0:02:11.3]} 18. Qe2
{[%clk 0:02:26]} 18... Qc5 {[%clk 0:01:54.5]} 19. Rfd1 {[%clk 0:02:22.4]} 19...
Rfd6 {[%clk 0:01:54.5]} 20. Rxd6 {[%clk 0:02:22.2]} 20... Rxd6 {[%clk
0:01:41.5]} 21. c3 {[%clk 0:02:20.4]} 21... Kg7 {[%clk 0:01:33.2]} 22. Rd1
{[%clk 0:02:16.1]} 22... Rxd1+ {[%clk 0:01:26.4]} 23. Qxd1 {[%clk 0:02:17]}
23... Qc4 {[%clk 0:01:27]} 24. Qd7 {[%clk 0:02:13.5]} 24... Qxa4 {[%clk
0:01:00.8]} 25. Qxc7 {[%clk 0:02:08.7]} 25... Qa1+ {[%clk 0:00:53.6]} 26. Kh2
{[%clk 0:02:08.9]} 26... Qxb2 {[%clk 0:00:53.7]} 27. Nxe5 {[%clk 0:02:09.2]}
27... Nxe5 {[%clk 0:00:51.7]} 28. Qxe5+ {[%clk 0:02:08.3]} 28... Kg8 {[%clk
0:00:44.9]} 29. f4 {[%clk 0:02:08.5]} 29... Qb6 {[%clk 0:00:20.1]} 30. h4 {[%clk
0:01:51.3]} 30... Qc6 {[%clk 0:00:18.2]} 31. h5 {[%clk 0:01:49.6]} 31... gxh5
{[%clk 0:00:18.4]} 32. f5 {[%clk 0:01:45.2]} 32... f6 {[%clk 0:00:17.3]} 33. Qe7
{[%clk 0:01:41.8]} 33... a5 {[%clk 0:00:13.2]} 34. e5 {[%clk 0:01:41.8]} 34...
Qe4 {[%clk 0:00:04.5]} 35. Qe8+ {[%clk 0:01:41.3]} 35... Kg7 {[%clk 0:00:04]}
36. exf6+ {[%clk 0:01:41.5]} 1-0

[Event "Early-Titled-Tuesday-Blitz-June-18-2024"]
[Site "Chess.com"]
[Date "2024.06.18"]
[Round "4"]
[White "LuisFSiles"]
[Black "chrisclaireredfield"]
[Result "1-0"]
[WhiteElo "2339"]
[BlackElo "2482"]
[TimeControl "180+1"]
[EndTime "8:39:50 PDT"]
[Termination "LuisFSiles won on time"]

1. e4 {[%clk 0:03:00.9]} 1... e5 {[%clk 0:02:59.7]} 2. Nf3 {[%clk 0:03:00.2]}
2... Nf6 {[%clk 0:03:00.3]} 3. Nc3 {[%clk 0:02:58.4]} 3... Nc6 {[%clk
0:02:57.9]} 4. Bc4 {[%clk 0:02:57]} 4... Nxe4 {[%clk 0:02:54.7]} 5. O-O {[%clk
0:02:56.3]} 5... Nf6 {[%clk 0:02:50.7]} 6. d4 {[%clk 0:02:43.3]} 6... e4 {[%clk
0:02:41.3]} 7. Ne5 {[%clk 0:02:36.4]} 7... d5 {[%clk 0:02:39.6]} 8. Bb5 {[%clk
0:02:27.3]} 8... Bd7 {[%clk 0:02:39.3]} 9. f3 {[%clk 0:02:24.6]} 9... Nxe5
{[%clk 0:02:11]} 10. dxe5 {[%clk 0:02:20.4]} 10... Bc5+ {[%clk 0:02:10.9]} 11.
Kh1 {[%clk 0:02:16.2]} 11... Bxb5 {[%clk 0:02:10.4]} 12. Nxb5 {[%clk 0:02:05.5]}
12... Ng8 {[%clk 0:01:34.7]} 13. Qxd5 {[%clk 0:02:00.2]} 13... Qxd5 {[%clk
0:00:52.2]} 14. Nxc7+ {[%clk 0:01:58.6]} 14... Kf8 {[%clk 0:00:51.7]} 15. Nxd5
{[%clk 0:01:59.5]} 15... Re8 {[%clk 0:00:45.7]} 16. f4 {[%clk 0:01:40.5]} 16...
f5 {[%clk 0:00:41.8]} 17. Be3 {[%clk 0:01:39.7]} 17... Bxe3 {[%clk 0:00:38.9]}
18. Nxe3 {[%clk 0:01:39.7]} 18... Ne7 {[%clk 0:00:39.2]} 19. Rad1 {[%clk
0:01:36.8]} 19... Kf7 {[%clk 0:00:23.5]} 20. Rd7 {[%clk 0:01:34.7]} 20... g6
{[%clk 0:00:21.4]} 21. Rfd1 {[%clk 0:01:26.6]} 21... Rc8 {[%clk 0:00:08.6]} 22.
R1d6 {[%clk 0:01:16.8]} 22... Rc6 {[%clk 0:00:04.1]} 23. Nd5 {[%clk 0:01:11]}
23... Re8 {[%clk 0:00:04]} 24. Rf6+ {[%clk 0:01:08.1]} 1-0

[Event "Early-Titled-Tuesday-Blitz-June-18-2024"]
[Site "Chess.com"]
[Date "2024.06.18"]
[Round "4"]
[White "Boudicca64"]
[Black "reniite"]
[Result "0-1"]
[WhiteElo "1829"]
[BlackElo "2287"]
[TimeControl "180+1"]
[EndTime "8:39:53 PDT"]
[Termination "reniite won on time"]

1. e4 {[%clk 0:02:57.8]} 1... e6 {[%clk 0:02:59.4]} 2. d4 {[%clk 0:02:55.9]}
2... d5 {[%clk 0:02:59.4]} 3. exd5 {[%clk 0:02:55.5]} 3... exd5 {[%clk
0:02:59.3]} 4. Nf3 {[%clk 0:02:55.1]} 4... Bd6 {[%clk 0:02:55.5]} 5. c4 {[%clk
0:02:53]} 5... dxc4 {[%clk 0:02:52.2]} 6. Bxc4 {[%clk 0:02:51]} 6... Ne7 {[%clk
0:02:52.3]} 7. O-O {[%clk 0:02:49.1]} 7... Bg4 {[%clk 0:02:52.4]} 8. h3 {[%clk
0:02:47.2]} 8... Bh5 {[%clk 0:02:49.5]} 9. Nc3 {[%clk 0:02:44.9]} 9... Nbc6
{[%clk 0:02:47.5]} 10. Be3 {[%clk 0:02:42.3]} 10... O-O {[%clk 0:02:46.9]} 11.
g4 {[%clk 0:02:34.3]} 11... Bg6 {[%clk 0:02:45.7]} 12. Nb5 {[%clk 0:02:21.9]}
12... a6 {[%clk 0:02:40.5]} 13. Nxd6 {[%clk 0:02:20.4]} 13... Qxd6 {[%clk
0:02:41.4]} 14. Qe2 {[%clk 0:02:03.2]} 14... Nd5 {[%clk 0:02:39.2]} 15. Rad1
{[%clk 0:01:48.6]} 15... Rfe8 {[%clk 0:02:37.4]} 16. Qd2 {[%clk 0:01:44.8]}
16... Rad8 {[%clk 0:02:28.5]} 17. Ne5 {[%clk 0:01:27.9]} 17... Nxe3 {[%clk
0:02:27.6]} 18. Qxe3 {[%clk 0:01:13.4]} 18... Nxd4 {[%clk 0:02:10.1]} 19. f4
{[%clk 0:00:52.3]} 19... c5 {[%clk 0:01:54.3]} 20. Rfe1 {[%clk 0:00:35.9]} 20...
b5 {[%clk 0:01:52.4]} 21. f5 {[%clk 0:00:22]} 21... bxc4 {[%clk 0:01:39.8]} 22.
fxg6 {[%clk 0:00:20]} 22... hxg6 {[%clk 0:01:39.3]} 23. Qf2 {[%clk 0:00:10.6]}
23... Qd5 {[%clk 0:01:08.5]} 0-1

[Event "Early-Titled-Tuesday-Blitz-June-18-2024"]
[Site "Chess.com"]
[Date "2024.06.18"]
[Round "4"]
[White "rionelG"]
[Black "gilbert_gm"]
[Result "0-1"]
[WhiteElo "2355"]
[BlackElo "2856"]
[TimeControl "180+1"]
[EndTime "8:39:55 PDT"]
[Termination "gilbert_gm won on time"]

1. e4 {[%clk 0:03:00.9]} 1... e5 {[%clk 0:02:59.9]} 2. Nf3 {[%clk 0:03:00.1]}
2... Nf6 {[%clk 0:03:00.6]} 3. Nxe5 {[%clk 0:02:56.9]} 3... d6 {[%clk
0:03:00.8]} 4. Nf3 {[%clk 0:02:57.1]} 4... Nxe4 {[%clk 0:03:01.4]} 5. d3 {[%clk
0:02:57.7]} 5... Nf6 {[%clk 0:03:01.1]} 6. d4 {[%clk 0:02:58.3]} 6... g6 {[%clk
0:02:57.3]} 7. Bd3 {[%clk 0:02:55.7]} 7... Bg7 {[%clk 0:02:57.8]} 8. Qe2+ {[%clk
0:02:52.7]} 8... Qe7 {[%clk 0:02:54.5]} 9. Qxe7+ {[%clk 0:02:52.2]} 9... Kxe7
{[%clk 0:02:55.4]} 10. O-O {[%clk 0:02:50.8]} 10... Re8 {[%clk 0:02:56]} 11.
Re1+ {[%clk 0:02:43.7]} 11... Kf8 {[%clk 0:02:56.2]} 12. Rxe8+ {[%clk
0:02:42.7]} 12... Kxe8 {[%clk 0:02:56.6]} 13. c4 {[%clk 0:02:39.7]} 13... Nc6
{[%clk 0:02:54.1]} 14. h3 {[%clk 0:02:38.6]} 14... Nb4 {[%clk 0:02:51.3]} 15.
Ne1 {[%clk 0:02:28.7]} 15... Nxd3 {[%clk 0:02:51.3]} 16. Nxd3 {[%clk 0:02:28.6]}
16... Bf5 {[%clk 0:02:52.1]} 17. Nf4 {[%clk 0:02:24.5]} 17... g5 {[%clk
0:02:46.4]} 18. Ne2 {[%clk 0:02:17.5]} 18... h6 {[%clk 0:02:45]} 19. Nbc3 {[%clk
0:02:15.6]} 19... Kd7 {[%clk 0:02:43.8]} 20. Be3 {[%clk 0:02:12.1]} 20... Ne4
{[%clk 0:02:39.9]} 21. Rd1 {[%clk 0:02:09.8]} 21... Re8 {[%clk 0:02:39.2]} 22.
b3 {[%clk 0:01:58.4]} 22... c6 {[%clk 0:02:37.1]} 23. Nxe4 {[%clk 0:01:53.6]}
23... Bxe4 {[%clk 0:02:38]} 24. Nc3 {[%clk 0:01:42.1]} 24... Bg6 {[%clk
0:02:31.2]} 25. Ne2 {[%clk 0:01:15.4]} 25... f5 {[%clk 0:02:29.4]} 26. Re1
{[%clk 0:01:08]} 26... f4 {[%clk 0:02:28.3]} 27. Bd2 {[%clk 0:01:08.1]} 27...
Bd3 {[%clk 0:02:26.4]} 28. Nc1 {[%clk 0:01:07.1]} 28... Rxe1+ {[%clk 0:02:13.2]}
29. Bxe1 {[%clk 0:01:08]} 29... Bb1 {[%clk 0:02:14.1]} 30. Bc3 {[%clk
0:00:24.7]} 30... c5 {[%clk 0:02:13.2]} 31. Kf1 {[%clk 0:00:22.4]} 31... cxd4
{[%clk 0:02:11.1]} 32. Bb2 {[%clk 0:00:20.7]} 32... Kc6 {[%clk 0:02:08.4]} 33.
Ke1 {[%clk 0:00:20.8]} 33... d5 {[%clk 0:02:07.7]} 34. Kd2 {[%clk 0:00:18.9]}
34... dxc4 {[%clk 0:02:04.2]} 35. bxc4 {[%clk 0:00:19.2]} 35... Kc5 {[%clk
0:02:04.6]} 36. Nb3+ {[%clk 0:00:16.1]} 36... Kxc4 {[%clk 0:02:04.3]} 37. Na5+
{[%clk 0:00:09.2]} 37... Kd5 {[%clk 0:02:04.4]} 38. Nxb7 {[%clk 0:00:09.2]}
38... Bxa2 {[%clk 0:02:02.1]} 39. Nd8 {[%clk 0:00:08.2]} 39... Kd6 {[%clk
0:01:54]} 40. Nb7+ {[%clk 0:00:05.9]} 40... Kc6 {[%clk 0:01:53.9]} 0-1

[Event "Early-Titled-Tuesday-Blitz-June-18-2024"]
[Site "Chess.com"]
[Date "2024.06.18"]
[Round "4"]
[White "Fandorine"]
[Black "A4RookA3"]
[Result "1-0"]
[WhiteElo "2941"]
[BlackElo "2439"]
[TimeControl "180+1"]
[EndTime "8:39:56 PDT"]
[Termination "Fandorine won by resignation"]

1. c4 {[%clk 0:03:00.9]} 1... c6 {[%clk 0:02:53.2]} 2. Nf3 {[%clk 0:02:58.3]}
2... d5 {[%clk 0:02:49.7]} 3. e3 {[%clk 0:02:58.8]} 3... Nf6 {[%clk 0:02:49.4]}
4. Nc3 {[%clk 0:02:57.4]} 4... e6 {[%clk 0:02:50.1]} 5. b3 {[%clk 0:02:56.8]}
5... Bd6 {[%clk 0:02:49.5]} 6. Bb2 {[%clk 0:02:56.8]} 6... O-O {[%clk
0:02:49.6]} 7. Qc2 {[%clk 0:02:56.6]} 7... e5 {[%clk 0:02:42.3]} 8. cxd5 {[%clk
0:02:53.4]} 8... cxd5 {[%clk 0:02:43.2]} 9. Nb5 {[%clk 0:02:54]} 9... Nc6 {[%clk
0:02:42.6]} 10. Nxd6 {[%clk 0:02:54.2]} 10... Qxd6 {[%clk 0:02:43.5]} 11. d4
{[%clk 0:02:46]} 11... Ne4 {[%clk 0:02:38.2]} 12. a3 {[%clk 0:02:40.4]} 12...
exd4 {[%clk 0:02:32]} 13. Nxd4 {[%clk 0:02:40.3]} 13... Nxd4 {[%clk 0:02:31.3]}
14. Bxd4 {[%clk 0:02:41.2]} 14... Bf5 {[%clk 0:02:29.5]} 15. Qb2 {[%clk
0:02:37.9]} 15... Qg6 {[%clk 0:02:14.8]} 16. f3 {[%clk 0:02:28.6]} 16... Nd6
{[%clk 0:02:07.2]} 17. g4 {[%clk 0:02:28.5]} 17... Be6 {[%clk 0:02:01.6]} 18.
Rd1 {[%clk 0:02:22.5]} 18... Rfc8 {[%clk 0:01:55.9]} 19. Bd3 {[%clk 0:02:20.8]}
19... Qh6 {[%clk 0:01:56.4]} 20. h4 {[%clk 0:02:17.9]} 20... f5 {[%clk
0:01:48.6]} 21. g5 {[%clk 0:02:11.1]} 21... Qg6 {[%clk 0:01:45.3]} 22. Qh2
{[%clk 0:02:09.4]} 22... Ne8 {[%clk 0:01:33.1]} 23. Qe5 {[%clk 0:02:06.6]} 23...
h5 {[%clk 0:01:27.5]} 24. gxh6 {[%clk 0:02:03]} 24... Qxh6 {[%clk 0:01:25.8]}
25. Bxf5 {[%clk 0:02:00.9]} 25... Bxf5 {[%clk 0:01:15]} 26. Qxf5 {[%clk
0:02:01.8]} 26... Nd6 {[%clk 0:01:15.7]} 27. Qxd5+ {[%clk 0:01:53.9]} 27... Kh7
{[%clk 0:01:16.1]} 28. h5 {[%clk 0:01:32.1]} 28... Rf8 {[%clk 0:01:05.8]} 29.
Rg1 {[%clk 0:00:43.1]} 29... Rf7 {[%clk 0:00:49.2]} 30. Rg6 {[%clk 0:00:35.4]}
1-0